bitfinex/quotes_ETHUSD_20251110
["timestamp","ask_amount","ask_price","bid_price","bid_amount"]
[1762744359913,7.42736088,3627.8,3627.7,0.001]
[1762744360114,6.94026088,3627.8,3627.7,0.001]
[1762744360685,7.42436088,3627.8,3627.7,0.001]
[1762744362352,8.16380996,3627.8,3627.7,0.001]
[1762744362543,7.42436088,3627.8,3627.7,0.001]
[1762744362943,7.90786088,3627.8,3627.7,0.001]
[1762744363448,2.75778384,3626.1,3625.5,0.4835]
[1762744363646,0.91675595,3626.1,3625.6,0.1857]
[1762744363846,2.75793596,3625.9,3625.6,0.1857]
[1762744364147,2.75808809,3625.7,3625.6,0.1857]
[1762744364317,3.01484404,3625.7,3625.6,0.1857]
[1762744364648,3.01484404,3625.7,3625.6,1.1438]
[1762744366210,0.25675595,3625.7,3625.6,1.1438]
[1762744366416,3.01484404,3625.7,3625.6,1.1438]
[1762744367236,0.25675595,3625.7,3625.6,1.1438]
[1762744370752,3.01484404,3625.7,3625.6,1.1568]
[1762744371073,3.59168218,3625.7,3625.6,0.6603]
[1762744371243,2.75842434,3625.3,3624.9,0.6822]
[1762744371566,0.25675595,3625.2,3624.9,0.6822]
[1762744371734,3.01530222,3625.1,3625.0,0.4965]
[1762744372154,3.01530222,3625.1,3625.0,0.9646]
[1762744373435,0.25675595,3625.1,3625.0,3.72322068]
[1762744373635,0.25675595,3625.1,3625.0,1.63136294]
[1762744374035,0.25675595,3625.1,3625.0,0.9646]
[1762744374240,0.25675595,3625.1,3625.0,3.72322068]
[1762744374470,0.25675595,3625.1,3625.0,0.9646]
[1762744375636,0.25675595,3625.1,3625.0,3.72322068]
[1762744375950,0.39435595,3625.1,3625.0,0.9646]
[1762744376171,0.39435595,3625.1,3625.0,1.35551368]
[1762744376558,0.39435595,3625.1,3625.0,0.9646]
[1762744376754,0.39435595,3625.1,3625.0,3.72322068]
[1762744376976,0.39435595,3625.1,3625.0,7.32622066]
[1762744377591,0.39435595,3625.1,3625.0,3.72322068]
[1762744378389,0.39435595,3625.1,3625.0,0.4681]
[1762744378595,0.39435595,3625.1,3625.0,0.9613]
[1762744378789,0.39435595,3625.1,3625.0,3.71992068]
[1762744378996,0.39435595,3625.1,3625.0,4.38635357]
[1762744379770,0.39435595,3625.1,3625.0,1.62773289]
[1762744379972,0.25675595,3625.1,3625.0,3.71992068]
[1762744380371,0.25675595,3625.1,3625.0,0.9613]
[1762744380576,0.25675595,3625.1,3625.0,3.71992068]
[1762744381062,0.25675595,3625.1,3625.0,0.9613]
[1762744383095,0.25675595,3625.1,3625.0,3.71992068]
[1762744383396,0.25675595,3625.1,3625.0,4.38635359]
[1762744384123,0.25675595,3625.1,3625.0,5.64706559]
[1762744386009,0.1376,3626.1,3626.0,2.7578599]
[1762744386510,0.4719,3627.5,3626.0,0.9522]
[1762744386713,2.75687676,3627.3,3627.0,0.459]
[1762744386895,0.5915641,3627.2,3627.0,0.459]
[1762744387207,2.75687676,3627.3,3627.0,0.459]
[1762744387411,2.75682041,3627.4,3627.1,0.459]
[1762744387710,2.9463547,3627.6,3627.1,0.459]
[1762744387711,2.7569475,3627.2,3627.1,0.459]
[1762744388094,2.75672178,3627.5,3627.1,0.459]
[1762744388288,3.64318827,3627.4,3627.1,0.459]
[1762744388608,2.7569445,3627.3,3627.1,0.459]
[1762744388777,2.89463134,3627.1,3626.5,2.75746045]
[1762744388978,0.1376,3626.7,3626.4,2.75753485]
[1762744389177,2.75703134,3627.1,3626.4,2.75753485]
[1762744389379,2.75703134,3627.1,3626.4,3.25073485]
[1762744389593,2.75703134,3627.1,3626.5,0.4932]
[1762744389793,2.75699167,3627.2,3626.5,0.4932]
[1762744390217,3.05164456,3627.4,3626.5,0.4932]
[1762744390387,3.05166022,3627.4,3626.6,2.75733053]
[1762744390577,0.1897,3627.8,3627.3,0.459]
[1762744390918,2.75688376,3627.3,3626.6,2.75735057]
[1762744391111,2.75680407,3627.4,3626.7,2.75728608]
[1762744391316,0.002,3627.7,3626.7,0.4932]
[1762744391516,0.1376,3626.7,3626.6,2.75739146]
[1762744391716,0.1376,3626.7,3626.2,3.60299998]
[1762744392014,0.1376,3626.7,3626.6,3.21640362]
[1762744392225,0.1376,3626.7,3626.6,4.30699361]
[1762744393317,0.002,3627.7,3626.6,4.30699361]
[1762744393622,0.002,3627.7,3627.6,0.6451]
[1762744393820,0.002,3627.7,3627.6,0.459]
[1762744394019,0.002,3627.7,3627.0,0.1991]
[1762744394020,0.1376,3627.6,3627.3,0.1595]
[1762744394313,0.002,3627.7,3627.6,0.459]
[1762744394686,2.75674346,3627.5,3627.0,0.6923]
[1762744395077,3.65647614,3627.7,3626.5,2.75745528]
[1762744395078,2.7568933,3627.3,3626.7,0.1991]
[1762744395278,0.1376,3626.8,3626.7,0.1991]
[1762744395486,0.1376,3626.8,3626.1,0.3005]
[1762744395487,0.1376,3626.8,3626.3,1.259712]
[1762744395798,0.002,3627.7,3626.3,2.91365277]
[1762744395799,0.1376,3626.6,3626.3,2.91365277]
[1762744396107,0.1376,3626.4,3626.2,1.752912]
[1762744396281,0.1376,3626.4,3625.7,3.25123473]
[1762744396480,0.1376,3626.4,3625.4,2.75830123]
[1762744396481,0.1376,3626.1,3625.4,2.75830123]
[1762744396682,0.1376,3626.1,3625.0,0.66743291]
[1762744396683,0.1376,3625.4,3625.0,0.4942]
[1762744397011,0.40448228,3626.6,3625.3,0.459]
[1762744397012,2.75791287,3626.0,3625.3,0.459]
[1762744397325,3.35671511,3625.9,3625.3,0.459]
[1762744397496,2.75795667,3625.9,3625.3,0.459]
[1762744397906,3.01392967,3625.8,3625.3,0.459]
[1762744398222,0.25591496,3625.7,3625.3,0.459]
[1762744398423,0.25591496,3625.6,3625.3,0.459]
[1762744398618,0.25591496,3625.5,3625.3,0.459]
[1762744398821,0.25591496,3625.4,3625.3,0.459]
[1762744399021,0.25591496,3625.4,3625.0,0.4942]
[1762744399022,0.1376,3625.3,3625.0,0.4942]
[1762744399198,0.1376,3625.3,3625.1,2.75853172]
[1762744399547,0.1376,3625.3,3625.2,3.21746849]
[1762744399690,0.1376,3625.3,3625.2,4.50476517]
[1762744400035,0.1376,3625.7,3625.6,2.75816416]
[1762744400184,0.39352482,3625.7,3625.6,0.55164799]
[1762744400382,0.25593577,3625.7,3625.6,3.76881215]
[1762744400925,0.25593577,3625.7,3625.6,4.26201215]
[1762744401921,0.1376,3625.9,3625.8,2.75801202]
[1762744402217,0.3935428,3625.9,3625.8,3.91901444]
[1762744402430,0.1376,3625.9,3625.8,4.41221444]
[1762744403626,0.8487,3627.2,3625.8,4.41221444]
[1762744403627,2.75712779,3627.0,3626.2,2.75764699]
[1762744403808,0.1376,3626.1,3625.8,0.70200242]
[1762744404014,0.1376,3626.1,3626.0,2.7578599]
[1762744404202,0.1376,3626.1,3626.0,3.2168599]
[1762744404528,0.4719,3627.6,3626.5,2.75746961]
[1762744404691,0.4719,3627.6,3626.7,0.4591]
[1762744404692,2.75702357,3627.1,3626.7,0.4591]
[1762744404890,0.25612489,3627.0,3626.7,0.4591]
[1762744405091,0.25612489,3626.9,3626.7,0.4591]
[1762744405291,0.25612489,3626.8,3626.7,0.4591]
[1762744405525,0.25612489,3626.8,3626.5,3.2369678]
[1762744405526,0.1376,3626.7,3626.6,2.75740362]
[1762744405730,0.25612489,3626.7,3626.6,3.5606004]
[1762744406021,0.25612489,3626.7,3626.6,4.0197004]
[1762744407322,0.1376,3626.8,3626.7,2.75732759]
[1762744407548,0.39380598,3626.8,3626.7,4.37363039]
[1762744408038,0.39380598,3626.8,3626.7,1.6163028]
[1762744408333,0.39380598,3626.8,3626.7,0.9386]
[1762744408629,0.39380598,3626.8,3626.7,3.69592759]
[1762744408831,0.1376,3626.8,3626.7,3.69592759]
[1762744409031,0.1376,3626.8,3626.7,0.9386]
[1762744409331,0.1376,3626.8,3626.7,7.29892757]
[1762744409533,0.1376,3626.8,3626.7,8.30456787]
[1762744411436,0.1376,3626.8,3626.7,5.54724028]
[1762744411729,0.1376,3626.8,3626.7,7.82506787]
[1762744411939,0.1376,3626.8,3626.7,5.06774028]
[1762744412248,0.1376,3626.8,3626.7,3.60299998]
[1762744412396,4.05537877,3626.8,3626.7,3.60299998]
[1762744414950,4.05537877,3626.8,3626.2,3.60299998]
[1762744415157,0.2563272,3626.7,3626.2,3.60299998]
[1762744415464,0.1376,3626.3,3626.2,3.60299998]
[1762744415644,0.148,3626.3,3626.2,3.60299998]
[1762744415844,0.39423328,3626.3,3626.2,4.06209998]
[1762744416450,0.39423328,3626.3,3626.2,3.60299998]
[1762744417362,0.81713328,3626.3,3626.2,3.60299998]
[1762744417785,0.39423328,3626.3,3626.2,3.60299998]
[1762744417943,0.39423328,3626.3,3626.2,4.06209998]
[1762744418146,0.39423328,3626.3,3626.2,4.54159998]
[1762744418642,0.39423328,3626.3,3626.2,7.29930777]
[1762744419132,0.39423328,3626.3,3626.2,3.60299998]
[1762744419533,0.39423328,3626.3,3626.2,4.06209998]
[1762744420733,0.39423328,3626.3,3626.2,7.29930777]
[1762744420938,0.39423328,3626.3,3626.2,0.9386]
[1762744421179,0.39623328,3626.3,3626.2,0.9386]
[1762744421376,0.39623328,3626.3,3626.2,3.69630779]
[1762744421563,0.002,3626.3,3626.2,5.97429376]
[1762744426647,0.002,3626.3,3626.2,9.57729374]
[1762744428548,0.002,3626.3,3626.2,9.98279774]
[1762744431281,0.4906,3626.3,3626.2,1.259712]
[1762744431488,0.74746429,3626.3,3626.2,1.259712]
[1762744431687,0.39646429,3626.3,3626.2,4.47381979]
[1762744431890,0.39646429,3626.3,3626.2,2.4392788]
[1762744432093,0.39646429,3626.3,3626.2,5.19698659]
[1762744432094,0.1396,3626.3,3626.2,5.19698659]
[1762744432274,0.39654071,3626.3,3626.2,1.716112]
[1762744433023,0.39654071,3626.3,3626.2,4.47381979]
[1762744433810,0.39654071,3626.3,3626.2,5.38080177]
[1762744434389,0.25894071,3626.3,3626.2,5.38080177]
[1762744434823,0.002,3626.3,3626.2,5.38080177]
[1762744435610,0.002,3626.3,3626.2,5.40837884]
[1762744435926,0.002,3626.3,3626.2,5.38080177]
[1762744436423,0.002,3626.3,3626.2,8.98380175]
[1762744436599,0.002,3626.3,3626.2,9.12140175]
[1762744437316,0.002,3626.3,3626.2,9.52690575]
[1762744439189,0.002,3627.7,3626.9,0.405504]
[1762744439417,0.002,3627.7,3626.4,1.48228907]
[1762744439603,0.002,3627.7,3627.5,1.259712]
[1762744440014,0.4248,3627.6,3627.5,1.259712]
[1762744440330,0.4248,3627.6,3626.9,0.4931]
[1762744440331,0.4248,3627.6,3626.7,1.48228907]
[1762744440621,0.484,3627.5,3626.8,2.7571904]
[1762744440995,0.484,3627.5,3626.2,3.20504435]
[1762744440996,0.484,3627.5,3626.9,2.7571658]
[1762744441338,0.002,3627.7,3627.0,0.02757099]
[1762744441619,0.002,3627.7,3627.4,2.75674208]
[1762744441787,0.4642,3627.5,3627.4,2.75674208]
[1762744442599,0.002,3627.7,3627.5,2.75671761]
[1762744443388,0.002,3627.7,3627.1,0.1888]
[1762744443584,0.002,3627.7,3626.7,1.259712]
[1762744443585,0.4399,3627.2,3626.7,1.259712]
[1762744443791,0.4593,3627.1,3626.9,1.259712]
[1762744444019,0.4593,3627.1,3626.8,1.259712]
[1762744444194,0.4593,3627.1,3627.0,2.75709953]
[1762744444602,0.4593,3627.1,3626.9,2.75715118]
[1762744444799,0.4593,3627.1,3627.0,2.75709953]
[1762744445117,0.4593,3627.1,3626.8,2.75717989]
[1762744445303,0.4593,3627.1,3626.4,0.4931]
[1762744445520,0.4444,3627.4,3626.9,1.259712]
[1762744445724,0.4444,3627.4,3626.9,0.80340668]
[1762744445922,0.4444,3627.4,3626.7,1.259712]
[1762744445923,0.4592,3627.0,3626.7,1.259712]
[1762744446246,0.4546,3626.8,3626.7,4.01699157]
[1762744446836,0.4491,3627.0,3626.8,2.75721152]
[1762744447037,0.4792,3627.3,3626.8,2.75721152]
[1762744447192,0.4248,3626.9,3626.7,2.75730843]
[1762744447393,0.4248,3626.9,3626.6,1.259712]
[1762744447655,0.4248,3626.9,3626.7,2.75732606]
[1762744449104,0.4792,3627.3,3626.8,2.75725157]
[1762744449309,0.1376,3626.9,3626.7,2.75726477]
[1762744449628,0.4248,3626.7,3626.5,1.259712]
[1762744449828,0.1464,3626.6,3626.5,1.259712]
[1762744450030,0.1464,3626.6,3626.5,2.75747966]
[1762744450333,0.1464,3626.6,3626.5,3.21197966]
[1762744450334,0.1376,3626.6,3626.5,3.21197966]
[1762744450525,0.1376,3626.6,3626.5,5.19461757]
[1762744451331,0.39479673,3626.6,3626.5,5.19461757]
[1762744451925,0.63859673,3626.6,3626.5,4.01719166]
[1762744452826,0.39479673,3626.6,3626.5,4.01719166]
[1762744453040,0.39479673,3626.6,3626.5,4.47169166]
[1762744455366,0.39479673,3626.6,3626.5,4.01719166]
[1762744456066,0.39479673,3626.6,3626.5,7.62019164]
[1762744456969,0.82419673,3626.6,3626.5,7.62019164]
[1762744457262,0.82419673,3626.6,3626.5,3.60299998]
[1762744457684,1.30289673,3626.6,3626.5,3.60299998]
[1762744457968,1.4519364,3626.6,3626.1,3.60299998]
[1762744458177,0.1376,3626.1,3625.7,3.60299998]
[1762744458381,0.39479673,3626.0,3625.8,2.75800288]
[1762744458589,0.25719673,3625.9,3625.8,4.01771488]
[1762744458872,0.25719673,3625.9,3625.8,1.259712]
[1762744458873,0.72139673,3625.9,3625.8,1.259712]
[1762744459087,0.72139673,3625.9,3625.8,4.01772402]
[1762744459790,0.72139673,3625.9,3625.8,1.259712]
[1762744459986,0.72139673,3625.9,3625.8,4.01772402]
[1762744460194,0.72139673,3625.9,3625.8,1.259712]
[1762744460379,0.72139673,3625.9,3625.8,4.01772402]
[1762744460891,0.72139673,3625.9,3625.7,4.86371198]
[1762744461059,0.71859673,3625.8,3625.7,4.86371198]
[1762744461592,0.71859673,3625.8,3625.7,7.62180007]
[1762744462187,0.71859673,3625.8,3625.7,4.86371198]
[1762744462590,1.16299673,3625.8,3625.7,3.60399998]
[1762744463096,1.16299673,3625.8,3625.7,0.001]
[1762744463277,1.59442807,3625.8,3625.7,0.001]
[1762744463593,4.35244009,3625.8,3625.7,0.001]
[1762744463777,1.59442807,3625.8,3625.7,0.001]
[1762744463994,0.71859673,3625.8,3625.7,2.75908809]
[1762744464195,0.71699673,3625.8,3625.7,2.75908809]
[1762744464510,0.25719673,3625.8,3625.7,3.21358809]
[1762744465269,0.25719673,3625.8,3625.7,3.67968809]
[1762744465609,0.25719673,3625.8,3625.7,3.21358809]
[1762744465962,0.66549673,3625.8,3625.7,0.001]
[1762744466175,1.15339673,3625.8,3625.7,0.001]
[1762744467621,0.66549673,3625.8,3625.7,2.75908809]
[1762744468532,0.66549673,3625.8,3625.7,0.001]
[1762744468814,0.66549673,3625.8,3625.7,2.75908809]
[1762744469780,0.66549673,3625.8,3625.7,0.001]
[1762744469982,0.66549673,3625.8,3625.7,2.75908809]
[1762744470820,0.25719673,3625.8,3625.7,3.21188809]
[1762744471017,0.1895,3626.9,3625.7,3.21188809]
[1762744471018,0.1376,3626.2,3625.7,4.25730156]
[1762744471217,0.1376,3626.2,3626.1,3.40178384]
[1762744471416,0.39441085,3626.2,3626.1,3.40178384]
[1762744471985,0.39441085,3626.2,3626.1,3.86788384]
[1762744472224,0.39441085,3626.2,3626.1,4.89075938]
[1762744472526,0.1895,3626.9,3626.4,2.75752156]
[1762744472527,0.1376,3626.5,3626.4,2.75752156]
[1762744472823,0.39445958,3626.5,3626.4,2.75752156]
[1762744473336,0.25685958,3626.5,3626.4,3.67642156]
[1762744473626,0.1376,3626.8,3626.7,2.75726703]
[1762744473793,0.3945556,3626.8,3626.7,2.75726703]
[1762744473997,0.3945556,3626.8,3626.7,3.21006703]
[1762744474411,0.3945556,3626.8,3626.7,0.4528]
[1762744474614,0.3945556,3626.8,3626.7,3.21012759]
[1762744474918,0.3945556,3626.8,3626.7,0.4528]
[1762744475118,0.3945556,3626.8,3626.4,0.76481947]
[1762744475428,0.2569556,3626.7,3626.6,2.75740362]
[1762744475627,0.2569556,3626.7,3626.6,3.21020362]
[1762744475923,0.2569556,3626.7,3626.6,3.67630362]
[1762744476913,0.002,3626.9,3626.8,2.75725157]
[1762744477227,0.25907742,3626.9,3626.8,1.09615552]
[1762744477541,1.14737742,3626.9,3626.5,2.75743327]
[1762744477688,0.25707742,3626.8,3626.4,0.1376]
[1762744477888,0.8903,3626.9,3626.7,2.75731536]
[1762744478099,0.25708985,3626.8,3626.7,2.75732759]
[1762744478506,0.25708985,3626.8,3626.7,3.21012759]
[1762744478705,0.25708985,3626.8,3626.7,4.33335197]
[1762744479112,0.25708985,3626.8,3626.7,3.86725197]
[1762744479320,0.002,3626.9,3626.8,2.75725157]
[1762744479632,0.25908017,3626.9,3626.8,3.21005157]
[1762744480011,0.25908017,3626.9,3626.8,3.67615157]
[1762744480194,0.25908017,3626.9,3626.8,3.93287192]
[1762744481434,0.65958017,3626.9,3626.3,0.4661]
[1762744481589,0.4025,3626.9,3626.8,2.75725157]
[1762744481794,0.6598748,3626.9,3626.8,2.75725157]
[1762744482433,0.6598748,3626.9,3626.8,6.36025155]
[1762744482604,0.2593748,3626.9,3626.8,6.81305155]
[1762744484834,0.6598748,3626.9,3626.8,3.60299998]
[1762744485198,1.3429748,3626.9,3626.8,3.60299998]
[1762744486100,1.3429748,3626.9,3626.1,1.450912]
[1762744486101,1.3429748,3626.9,3626.1,3.60299998]
[1762744486295,0.0049,3626.6,3626.3,2.75760596]
[1762744486627,0.2573748,3626.5,3626.2,4.01741818]
[1762744486834,0.2573748,3626.4,3626.2,4.01741818]
[1762744487003,0.2573748,3626.3,3626.2,4.01741818]
[1762744487333,0.002,3626.9,3626.8,3.21005157]
[1762744487545,0.25949984,3626.9,3626.8,3.21005157]
[1762744487691,0.002,3626.9,3626.8,3.67305157]
[1762744487896,0.002,3626.9,3626.8,4.3160907]
[1762744488330,0.25951509,3626.9,3626.8,3.4002907]
[1762744488497,0.65421509,3626.9,3626.8,3.4002907]
[1762744488697,1.33291509,3626.9,3626.6,2.75739111]
[1762744488934,0.0149,3626.7,3626.6,4.01710311]
[1762744489147,0.27241509,3626.7,3626.5,4.01717794]
[1762744489463,0.27241509,3626.7,3626.5,1.259712]
[1762744489464,0.25751509,3626.6,3626.5,1.259712]
[1762744489760,0.64841509,3626.6,3626.5,2.75747966]
[1762744490127,0.64841509,3626.6,3626.4,6.3605354]
[1762744490427,0.27611509,3626.5,3626.4,7.62026768]
[1762744490630,0.27611509,3626.5,3626.4,4.86271198]
[1762744491153,0.27611509,3626.5,3626.4,2.7575557]
[1762744491353,0.27611509,3626.5,3626.3,2.75762774]
[1762744491671,0.25751509,3626.4,3626.3,2.75763174]
[1762744491818,0.64471509,3626.4,3626.3,2.75763174]
[1762744492658,0.25751509,3626.4,3626.3,3.23933174]
[1762744493019,0.25755311,3626.4,3626.3,2.75763174]
[1762744493218,0.66315311,3626.4,3626.3,2.75763174]
[1762744494054,1.15675311,3626.4,3626.2,2.7576379]
[1762744494269,0.25755311,3626.3,3626.1,6.36075786]
[1762744494421,0.25755311,3626.3,3626.1,4.86271198]
[1762744494422,0.25755311,3626.2,3626.1,4.86271198]
[1762744494624,0.66315311,3626.2,3626.1,4.86271198]
[1762744494929,1.12475311,3626.2,3625.7,0.001]
[1762744495120,0.4787,3625.8,3625.7,0.001]
[1762744495316,0.4787,3625.8,3625.7,2.75903098]
[1762744495754,0.3849,3626.1,3625.7,2.75903098]
[1762744495924,0.25775584,3626.0,3625.9,2.75793596]
[1762744496120,0.25775584,3626.0,3625.8,2.75798213]
[1762744496319,0.39535584,3625.9,3625.8,4.01769413]
[1762744496580,0.87405584,3625.9,3625.8,4.01769413]
[1762744497149,0.87405584,3625.9,3625.8,1.259712]
[1762744497350,0.87405584,3625.9,3625.7,2.75908681]
[1762744497351,0.87405584,3625.9,3625.7,0.001]
[1762744497550,0.75955584,3625.8,3625.7,0.001]
[1762744497965,0.75955584,3625.8,3625.7,4.01880009]
[1762744498166,0.75955584,3625.8,3625.7,1.260712]
[1762744498493,0.75955584,3625.8,3625.7,0.001]
[1762744498961,0.75955584,3625.8,3625.7,3.24878809]
[1762744498962,0.25775584,3625.8,3625.7,3.24878809]
[1762744499495,0.25775584,3625.8,3625.7,2.75908809]
[1762744500152,0.25775584,3625.8,3625.7,4.40969179]
[1762744500525,0.73645584,3625.8,3625.7,0.001]
[1762744500649,1.15775584,3625.8,3625.7,0.001]
[1762744500851,3.91576786,3625.8,3625.7,0.001]
[1762744511930,5.58098386,3625.8,3625.7,0.001]
[1762744512133,6.48056869,3625.8,3625.7,0.001]
[1762744512704,6.07506469,3625.8,3625.7,0.001]
[1762744514118,0.73645584,3625.8,3625.7,0.001]
[1762744514324,3.49446786,3625.8,3625.7,0.001]
[1762744514646,1.15775584,3625.8,3625.7,0.001]
[1762744514844,0.73645584,3625.8,3625.7,0.001]
[1762744515046,3.91576786,3625.8,3625.7,0.001]
[1762744515252,0.73645584,3625.8,3625.7,0.001]
[1762744515651,0.25775584,3625.8,3625.7,0.001]
[1762744515854,0.25775584,3625.8,3625.7,0.4907]
[1762744516451,0.25775584,3625.8,3625.7,0.9737]
[1762744516616,0.25775584,3625.8,3625.7,3.73178809]
[1762744516822,0.25775584,3625.8,3625.7,4.3809894]
[1762744517038,2.75735494,3626.7,3625.8,2.75800275]
[1762744517358,2.75735494,3626.7,3625.8,3.24100275]
[1762744517359,0.1376,3626.1,3625.8,3.24100275]
[1762744517510,0.1376,3626.1,3626.0,2.7578599]
[1762744517714,0.1376,3626.1,3626.0,3.2475599]
[1762744517715,0.25663389,3626.1,3626.0,3.2475599]
[1762744518016,0.1376,3626.4,3626.1,2.75775839]
[1762744518216,0.1376,3626.4,3626.3,0.4897]
[1762744518450,0.39435191,3626.4,3626.3,0.4897]
[1762744518650,0.39435191,3626.4,3626.3,3.73033174]
[1762744519046,0.39435191,3626.4,3626.3,0.9727]
[1762744522425,0.39435191,3626.4,3626.3,1.36385038]
[1762744522656,0.39435191,3626.4,3626.3,4.12148212]
[1762744523661,0.25675191,3626.4,3626.3,4.25908212]
[1762744524363,0.25675191,3626.4,3626.3,4.12148212]
[1762744525878,0.1376,3626.6,3626.5,2.75747966]
[1762744526079,0.25687912,3626.6,3626.5,3.73297966]
[1762744526284,0.25687912,3626.6,3626.5,5.02026645]
[1762744526432,0.002,3626.9,3626.8,4.01696357]
[1762744526646,0.002,3626.9,3626.8,5.71261345]
[1762744526851,0.002,3626.9,3626.8,6.20971345]
[1762744527183,0.002,3626.9,3626.8,6.61521745]
[1762744528846,0.002,3626.9,3626.8,9.81271343]
[1762744531042,0.002,3626.9,3626.8,10.21821743]
[1762744533046,0.002,3626.9,3626.8,10.32854567]
[1762744533949,0.002,3627.3,3627.2,3.1624515]
[1762744534158,0.002,3627.3,3627.2,5.0847635]
[1762744534360,0.002,3627.3,3627.2,5.5818635]
[1762744534974,0.002,3627.3,3627.2,5.1763595]
[1762744535793,0.002,3627.3,3627.2,8.77935948]
[1762744535976,0.002,3627.3,3627.2,10.64707176]
[1762744536493,0.002,3627.3,3627.2,10.78467176]
[1762744536681,0.002,3627.3,3627.2,11.19017576]
[1762744537210,0.002,3627.3,3627.2,11.30049821]
[1762744538863,0.002,3627.3,3627.2,10.04078621]
[1762744539087,0.002,3627.3,3627.2,9.79286376]
[1762744539420,0.002,3627.3,3627.2,11.05257576]
[1762744540712,0.002,3627.3,3627.2,9.48737176]
[1762744541683,0.4832,3627.7,3627.4,2.75673373]
[1762744542006,0.4832,3627.7,3627.5,3.60299998]
[1762744542304,0.1937,3627.9,3627.5,3.60299998]
[1762744542470,0.1937,3627.9,3627.6,2.75658343]
[1762744543171,0.4767,3627.7,3627.6,2.75658343]
[1762744543609,0.4767,3627.7,3627.5,3.60299998]
[1762744543772,0.0041,3627.6,3627.5,7.61939914]
[1762744544307,0.0041,3627.6,3627.5,4.86271198]
[1762744544609,0.0041,3627.6,3627.5,7.61943148]
[1762744544905,0.002,3628.1,3628.0,4.01605158]
[1762744545069,0.002,3628.1,3628.0,8.09745156]
[1762744545273,0.002,3628.1,3628.0,8.59455156]
[1762744545468,0.002,3628.1,3628.0,9.72964944]
[1762744546107,0.002,3628.1,3628.0,6.12664946]
[1762744547214,0.002,3628.1,3628.0,6.53215346]
[1762744547974,0.002,3628.1,3628.0,6.88250383]
[1762744548170,0.002,3628.1,3628.0,10.48550381]
[1762744548416,0.002,3628.1,3628.0,6.99278796]
[1762744548631,0.002,3628.1,3628.0,6.64243759]
[1762744549073,0.002,3628.1,3628.0,6.78003759]
[1762744549649,0.002,3628.1,3628.0,6.28293759]
[1762744549997,0.002,3628.1,3628.0,6.17265346]
[1762744550341,0.002,3628.1,3628.0,6.63615346]
[1762744552318,0.002,3628.1,3628.0,6.17265346]
[1762744553932,0.002,3628.1,3628.0,6.63615346]
[1762744554304,0.002,3628.1,3628.0,6.98650383]
[1762744557055,0.002,3628.9,3628.8,3.16123592]
[1762744557202,0.002,3628.9,3628.8,8.86049827]
[1762744557203,0.2590708,3628.9,3628.8,8.86049827]
[1762744557398,0.2590708,3628.9,3628.8,9.48819827]
[1762744557836,0.2590708,3628.9,3628.8,8.99809827]
[1762744558002,0.2590708,3628.9,3628.8,11.0089197]
[1762744558836,0.2590708,3628.9,3628.8,10.5188197]
[1762744559325,0.2590708,3628.9,3628.8,9.6271157]
[1762744559531,0.7433708,3628.9,3628.8,9.6271157]
[1762744559921,0.2590708,3628.9,3628.8,9.6271157]
[1762744560505,0.7424708,3628.9,3628.8,9.6271157]
[1762744560706,0.2590708,3628.9,3628.8,10.1133157]
[1762744560911,0.7424708,3628.9,3628.8,9.6271157]
[1762744561216,1.3153708,3628.9,3628.8,3.60299998]
[1762744563304,1.3153708,3628.9,3628.8,6.8449319]
[1762744563305,0.2590708,3628.9,3628.8,6.8449319]
[1762744564144,0.7433708,3628.9,3628.8,3.60299998]
[1762744564456,1.3154708,3628.9,3628.8,3.60299998]
[1762744564936,0.7433708,3628.9,3628.8,6.3587319]
[1762744565113,0.7433708,3628.9,3628.8,3.60299998]
[1762744565315,1.1200708,3628.9,3628.8,3.60299998]
[1762744565716,1.1200708,3628.9,3628.8,6.3587319]
[1762744566108,0.7433708,3628.9,3628.8,3.60299998]
[1762744566306,0.7433708,3628.9,3628.7,2.755734]
[1762744566507,0.25693244,3628.8,3628.5,1.259712]
[1762744566809,0.25693244,3628.8,3628.4,2.75602877]
[1762744566810,0.25693244,3628.7,3628.6,4.01559581]
[1762744567336,0.63123244,3628.7,3628.6,4.01559581]
[1762744567539,0.25693244,3628.7,3628.6,4.50179581]
[1762744567743,0.25693244,3628.7,3628.6,5.22757827]
[1762744568047,0.25693244,3628.7,3628.6,9.08626377]
[1762744568254,0.25693244,3628.7,3628.6,6.12318227]
[1762744570152,0.002,3628.9,3628.8,3.16123592]
[1762744570357,0.2589918,3628.9,3628.8,3.2699323]
[1762744570518,0.6332918,3628.9,3628.8,4.01544392]
[1762744571339,0.6332918,3628.9,3628.8,1.259712]
[1762744571654,0.002,3628.9,3628.8,5.81126495]
[1762744571819,0.002,3628.9,3628.8,7.80060134]
[1762744572020,0.002,3628.9,3628.8,7.77304403]
[1762744572453,0.002,3628.9,3628.8,11.68321637]
[1762744572658,0.002,3629.7,3629.6,4.42034053]
[1762744572858,0.25916669,3629.7,3629.6,4.93409177]
[1762744573155,0.002,3629.7,3629.6,6.57958814]
[1762744573534,0.002,3629.7,3629.6,6.83875483]
[1762744573858,0.002,3629.7,3629.6,6.4247378]
[1762744581626,0.002,3629.7,3629.6,6.5623378]
[1762744584939,0.4868,3630.6,3630.3,3.16009728]
[1762744585141,0.002,3630.9,3630.4,4.84322448]
[1762744585354,0.25651533,3630.8,3630.4,7.73534188]
[1762744585574,0.461,3630.5,3630.4,7.73534188]
[1762744585771,0.856,3630.5,3630.4,4.98082448]
[1762744585938,0.856,3630.5,3630.4,7.73534188]
[1762744586800,0.856,3630.5,3630.4,4.98082448]
[1762744588098,0.856,3630.5,3630.4,7.73534188]
[1762744589802,0.461,3630.5,3630.4,7.73534188]
[1762744590400,0.461,3630.5,3630.4,8.78434157]
[1762744590555,0.461,3630.5,3630.4,10.12854557]
[1762744590556,0.002,3630.5,3630.4,10.12854557]
[1762744590888,0.002,3630.9,3630.7,4.4195058]
[1762744591074,0.002,3630.9,3630.8,5.03722994]
[1762744591273,0.002,3630.9,3630.8,10.7391805]
[1762744591891,0.002,3630.9,3630.8,10.2589805]
[1762744592093,0.461,3630.9,3630.8,10.2589805]
[1762744592891,0.002,3630.9,3630.8,10.7391805]
[1762744595185,0.401,3630.9,3630.8,10.2589805]
[1762744595350,0.002,3630.9,3630.8,10.2589805]